lending/lending_fUSD_20241120
["ID","MTS","AMOUNT","RATE_DAILY","PERIOD"]
[342779916,1732140690489,-500.0,0.00055342,120]
[342779917,1732140690499,-988.55,0.00055342,120]
[342779918,1732140690508,-500.0,0.00055342,120]
[342779919,1732140690517,-2304.78,0.00055342,120]
[342779920,1732140690527,-500.0,0.00055342,120]
[342779921,1732140690536,-500.0,0.00055342,120]
[342779922,1732140690545,-843.9,0.00055342,120]
[342779923,1732140690555,-500.0,0.00055342,120]
[342779924,1732140690564,-690.54,0.00055342,120]
[342779925,1732140690573,-500.0,0.00055342,120]
[342779926,1732140690582,-500.0,0.00055342,120]
[342779927,1732140690591,-1647.87,0.00055342,120]
[342779928,1732140690601,-850.55,0.00055342,120]
[342779929,1732140690610,-809.67,0.00055342,120]
[342779930,1732140690619,-500.0,0.00055342,120]
[342779931,1732140690629,-683.97,0.00055342,120]
[342779932,1732140690638,-500.0,0.00055342,120]
[342779933,1732140690649,-834.1,0.00055342,120]
[342779934,1732140690658,-914.77,0.00055342,120]
[342779935,1732140690667,-1141.14,0.00055342,120]
[342779936,1732140690677,-500.0,0.00055342,120]
[342779937,1732140690686,-624.59,0.00055342,120]
[342779938,1732140690695,-500.0,0.00055342,120]
[342779939,1732140690704,-175.74947701,0.00055342,120]
[342779940,1732140690713,-1109.8,0.00055342,120]
[342779941,1732140690722,-209.4012761,0.00055342,120]
[342779942,1732140690731,-500.0,0.00055342,120]
[342779943,1732140690740,-500.0,0.00055342,120]
[342779944,1732140690751,-1752.52,0.00055342,120]
[342779945,1732140690761,-1096.46,0.00055342,120]
[342779946,1732140690770,-500.0,0.00055342,120]
[342779947,1732140690779,-950.07,0.00055342,120]
[342779948,1732140690788,-500.0,0.00055342,120]
[342779949,1732140690797,-500.0,0.00055342,120]
[342779950,1732140690806,-2142.92,0.00055342,120]
[342779951,1732140690815,-1422.3,0.00055342,120]
[342779952,1732140690824,-500.0,0.00055342,120]
[342779953,1732140690833,-829.0,0.00055342,120]
[342779954,1732140690842,-575.3,0.00055342,120]
[342779955,1732140690851,-500.0,0.00055342,120]
[342779956,1732140690861,-535.23551573,0.00055342,120]
[342779957,1732140690870,-737.82,0.00055342,120]
[342779958,1732140690879,-500.0,0.00055342,120]
[342779959,1732140690888,-666.21,0.00055342,120]
[342779960,1732140690898,-1778.99,0.00055342,120]
[342779961,1732140690907,-1715.56,0.00055342,120]
[342779962,1732140690916,-500.0,0.00055342,120]
[342779963,1732140690926,-1062.65,0.00055342,120]
[342779964,1732140690935,-500.0,0.00055342,120]
[342779965,1732140690944,-500.0,0.00055342,120]
[342779966,1732140690953,-500.0,0.00055342,120]
[342779967,1732140690962,-2346.15,0.00055342,120]
[342779968,1732140690971,-500.0,0.00055342,120]
[342779969,1732140690981,-949.47,0.00055342,120]
[342779970,1732140690990,-500.0,0.00055342,120]
[342779971,1732140691000,-888.32,0.00055342,120]
[342779972,1732140691010,-1351.22,0.00055342,120]
[342779973,1732140691019,-500.0,0.00055342,120]
[342779974,1732140691029,-500.0,0.00055342,120]
[342779975,1732140691038,-880.81,0.00055342,120]
[342779976,1732140691047,-500.0,0.00055342,120]
[342779977,1732140691056,-642.33,0.00055342,120]
[342779978,1732140691065,-500.0,0.00055342,120]
[342779979,1732140691075,-597.52,0.00055342,120]
[342779980,1732140691085,-6141.54,0.00055342,120]
[342779981,1732140691094,-501.10449009,0.00055342,120]
[342779982,1732140691103,-500.0,0.00055342,120]
[342779983,1732140691113,-500.0,0.00055342,120]
[342779984,1732140691123,-1511.19,0.00055342,120]
[342779985,1732140691137,-500.0,0.00055342,120]
[342779986,1732140691146,-1086.04,0.00055342,120]
[342779987,1732140691155,-668.34,0.00055342,120]
[342779988,1732140691165,-1351.32,0.00055342,120]
[342779989,1732140691175,-500.51409568,0.00055342,120]
[342779990,1732140691184,-1492.04,0.00055342,120]
[342779991,1732140691194,-926.38,0.00055342,120]
[342779992,1732140691204,-500.0,0.00055342,120]
[342779993,1732140691213,-695.0,0.00055342,120]
[342779994,1732140691223,-5287.99,0.00055342,120]
[342779995,1732140691235,-500.0,0.00055342,120]
[342779996,1732140691246,-500.62652439,0.00055342,120]
[342779997,1732140691256,-500.0,0.00055342,120]
[342779998,1732140691266,-500.0,0.00055342,120]
[342779999,1732140691275,-1482.2,0.00055342,120]
[342780000,1732140691284,-845.23,0.00055342,120]
[342780001,1732140691293,-409.23321882,0.00055342,120]
[342780002,1732140691302,-500.29668914,0.00055342,120]
[342780003,1732140691311,-500.0,0.00055342,120]
[342780004,1732140691321,-620.64971036,0.00055342,120]
[342780005,1732140691330,-500.0,0.00055342,120]
[342780006,1732140691339,-500.0,0.00055342,120]
[342780007,1732140691349,-1260.12,0.00055342,120]
[342780008,1732140691358,-500.0,0.00055342,120]
[342780009,1732140691367,-500.0,0.00055342,120]
[342780010,1732140691377,-1283.29,0.00055342,120]
[342780011,1732140691387,-500.0,0.00055342,120]
[342780012,1732140691396,-500.0,0.00055342,120]
[342780013,1732140691405,-1393.35,0.00055342,120]
[342780014,1732140691414,-500.0,0.00055342,120]
[342780015,1732140691424,-500.0,0.00055342,120]
[342780016,1732140691433,-500.0,0.00055342,120]
[342780017,1732140691443,-500.0,0.00055342,120]
[342780018,1732140691452,-500.0,0.00055342,120]
[342780019,1732140691461,-500.0,0.00055342,120]
[342780020,1732140691470,-2642.2,0.00055342,120]
[342780021,1732140691479,-1536.4,0.00055342,120]
[342780022,1732140691488,-3168.55,0.00055342,120]
[342780023,1732140691497,-500.0,0.00055342,120]
[342780024,1732140691507,-500.0,0.00055342,120]
[342780025,1732140691516,-500.0,0.00055342,120]
[342780026,1732140691526,-827.35,0.00055342,120]
[342780027,1732140691535,-500.0,0.00055342,120]
[342780028,1732140691545,-1702.89,0.00055342,120]
[342780029,1732140691555,-500.0,0.00055342,120]
[342780030,1732140691564,-500.0,0.00055342,120]
[342780031,1732140691575,-272.53214668,0.00055342,120]
[342780032,1732140691585,-641.78,0.00055342,120]
[342780033,1732140691594,-500.0,0.00055342,120]
[342780034,1732140691603,-1344.44,0.00055342,120]
[342780035,1732140691612,-1090.73,0.00055342,120]
[342780036,1732140691621,-512.47658834,0.00055342,120]
[342780037,1732140691630,-602.28312584,0.00055342,120]
[342780038,1732140691639,-52850.67,0.00055342,120]
[342780039,1732140691649,-500.0,0.00055342,120]
[342780040,1732140691658,-500.0,0.00055342,120]
[342780041,1732140691668,-1753.45,0.00055342,120]
[342780042,1732140691677,-1006.78,0.00055342,120]
[342780043,1732140691687,-500.0,0.00055342,120]
[342780044,1732140691696,-1064.88,0.00055342,120]
[342780045,1732140691705,-500.0,0.00055342,120]
[342780046,1732140691714,-500.0,0.00055342,120]
[342780047,1732140691723,-622.97,0.00055342,120]
[342780048,1732140691733,-500.0,0.00055342,120]
[342780049,1732140691743,-3042.17,0.00055342,120]
[342780050,1732140691753,-500.0,0.00055342,120]
[342780051,1732140691763,-1736.39,0.00055342,120]
[342780052,1732140691773,-2339.16,0.00055342,120]
[342780053,1732140691782,-500.0,0.00055342,120]
[342780054,1732140691791,-500.0,0.00055342,120]
[342780055,1732140691801,-700.57,0.00055342,120]
[342780056,1732140691810,-585.35,0.00055342,120]
[342780057,1732140691819,-213.68649032,0.00055342,120]
[342780058,1732140691827,-523.5,0.00055342,120]
[342780059,1732140691836,-500.0,0.00055342,120]
[342780060,1732140691845,-1522.74,0.00055342,120]
[342780061,1732140691856,-2627.11,0.00055342,120]
[342780062,1732140691865,-1766.0,0.00055342,120]
[342780063,1732140691873,-500.0,0.00055342,120]
[342780064,1732140691883,-693.99,0.00055342,120]
[342780065,1732140691893,-5335.95,0.00055342,120]
[342780066,1732140691902,-500.0,0.00055342,120]
[342780067,1732140691912,-973.18,0.00055342,120]
[342780068,1732140691921,-500.0,0.00055342,120]
[342780069,1732140691930,-500.0,0.00055342,120]
[342780070,1732140691939,-500.0,0.00055342,120]
[342780071,1732140691947,-500.0,0.00055342,120]
[342780072,1732140691957,-778.26,0.00055342,120]
[342780073,1732140691968,-500.0,0.00055342,120]
[342780074,1732140691978,-500.0,0.00055342,120]
[342780075,1732140691988,-500.0,0.00055342,120]
[342780076,1732140691996,-500.0,0.00055342,120]
[342780077,1732140692005,-561.95,0.00055342,120]
[342780078,1732140692014,-868.31,0.00055342,120]
[342780079,1732140692023,-1384.57,0.00055342,120]
[342780080,1732140692032,-1122.37,0.00055342,120]
[342780081,1732140692041,-400.36,0.00055342,7]
[342780082,1732140692050,-620.69,0.00055342,120]
[342780083,1732140692059,-500.0,0.00055342,120]
[342780084,1732140692068,-1223.49,0.00055342,120]
[342780085,1732140692077,-1516.54,0.00055342,120]
[342780086,1732140692086,-500.95142,0.00055342,120]
[342780087,1732140692095,-4704.32,0.00055342,120]
[342780088,1732140692105,-1041.7,0.00055342,120]
[342780089,1732140692114,-500.0,0.00055342,120]
[342780090,1732140692124,-1309.89,0.00055342,120]
[342780091,1732140692136,-525.76,0.00055342,120]
[342780092,1732140692144,-500.0,0.00055342,120]
[342780093,1732140692154,-500.0,0.00055342,120]
[342780094,1732140692163,-500.0,0.00055342,120]
[342780095,1732140692173,-2257.06,0.00055342,120]
[342780096,1732140692182,-2012.7,0.00055342,120]
[342780097,1732140692191,-500.0,0.00055342,120]
[342780098,1732140692205,-500.0,0.00055342,120]
[342780099,1732140692215,-656.82,0.00055342,120]
[342780100,1732140692224,-1047.88,0.00055342,120]
[342780101,1732140692234,-500.0,0.00055342,120]
[342780102,1732140692243,-500.0,0.00055342,120]
[342780103,1732140692252,-1177.9,0.00055342,120]
[342780104,1732140692261,-509.90228572,0.00055342,120]
[342780105,1732140692270,-1603.42,0.00055342,120]
[342780106,1732140692279,-500.0,0.00055342,120]
[342780107,1732140692288,-1567.54,0.00055342,120]
[342780108,1732140692297,-500.0,0.00055342,120]
[342780109,1732140692306,-500.0,0.00055342,120]
[342780110,1732140692315,-834.44,0.00055342,120]
[342780111,1732140692324,-500.0,0.00055342,120]
[342780112,1732140692333,-2004.44,0.00055342,120]
[342780113,1732140692342,-500.0,0.00055342,120]
[342780114,1732140692351,-500.0,0.00055342,120]
[342780115,1732140692360,-1050.71,0.00055342,120]
[342780116,1732140692369,-640.6033214,0.00055342,120]
[342780117,1732140692378,-500.0,0.00055342,120]
[342780118,1732140692387,-1803.54,0.00055342,120]
[342780119,1732140692399,-650.66,0.00055342,120]
[342780120,1732140692408,-500.0,0.00055342,120]
[342780121,1732140692417,-516.91,0.00055342,120]
[342780122,1732140692426,-500.0,0.00055342,120]
[342780123,1732140692435,-500.0,0.00055342,120]
[342780124,1732140692444,-500.0,0.00055342,120]
[342780125,1732140692453,-500.0,0.00055342,120]
[342780126,1732140692462,-500.0,0.00055342,120]
[342780127,1732140692471,-950.3,0.00055342,120]
[342780128,1732140692479,-4162.19,0.00055342,120]
[342780129,1732140692489,-500.0,0.00055342,120]
[342780130,1732140692498,-167.84928337,0.00055342,120]
[342780131,1732140692507,-729.88,0.00055342,120]
[342780132,1732140692517,-500.0,0.00055342,120]
[342780133,1732140692526,-1325.24,0.00055342,120]
[342780134,1732140692535,-951.19,0.00055342,120]
[342780135,1732140692544,-1437.64,0.00055342,120]
[342780136,1732140692553,-500.0,0.00055342,120]
[342780137,1732140692563,-739.2,0.00055342,120]
[342780138,1732140692572,-500.0,0.00055342,120]
[342780139,1732140692582,-711.16,0.00055342,120]
[342780140,1732140692591,-35063.23,0.00055342,120]
[342780141,1732140692600,-500.0,0.00055342,120]
[342780142,1732140692609,-758.38,0.00055342,120]
[342780143,1732140692618,-500.0,0.00055342,120]
[342780144,1732140692627,-500.0,0.00055342,120]
[342780145,1732140692637,-500.0,0.00055342,120]
[342780146,1732140692648,-1066.88,0.00055342,120]
[342780147,1732140692663,-500.0,0.00055342,120]
[342780148,1732140692672,-500.0,0.00055342,120]
[342780149,1732140692681,-604.09,0.00055342,120]
[342780150,1732140692691,-500.0,0.00055342,120]
[342780151,1732140692700,-516.9,0.00055342,120]
[342780152,1732140692709,-1309.97,0.00055342,120]
[342780153,1732140692719,-1271.19,0.00055342,120]
[342780154,1732140692728,-1776.53,0.00055342,120]
[342780155,1732140692737,-1055.78,0.00055342,120]
[342780156,1732140692746,-2027.31,0.00055342,120]
[342780157,1732140692755,-2957.46,0.00055342,120]
[342780158,1732140692764,-565.96,0.00055342,120]
[342780159,1732140692774,-3450.26,0.00055342,120]
[342780160,1732140692785,-1015.77,0.00055342,120]
[342780161,1732140692795,-500.0,0.00055342,120]
[342780162,1732140692804,-5653.29,0.00055342,120]
[342780163,1732140692814,-2531.55,0.00055342,120]
[342780164,1732140692824,-1396.17,0.00055342,120]
[342780165,1732140692833,-699.76,0.00055342,120]
[342780166,1732140692843,-578.1,0.00055342,120]
[342780167,1732140692852,-1045.04,0.00055342,120]
[342780168,1732140692861,-1833.67,0.00055342,120]
[342780169,1732140692871,-500.0,0.00055342,120]
[342780170,1732140692880,-500.0,0.00055342,120]
[342780171,1732140692890,-500.0,0.00055342,120]
[342780172,1732140692901,-671.36,0.00055342,120]
[342780173,1732140692910,-500.0,0.00055342,120]
[342780174,1732140692919,-500.0,0.00055342,120]
[342780175,1732140692928,-629.53310923,0.00055342,120]
[342780176,1732140692938,-618.56,0.00055342,120]
[342780177,1732140692948,-1250.43,0.00055342,120]
[342780178,1732140692958,-1529.97,0.00055342,120]
[342780179,1732140692967,-7124.81,0.00055342,120]
[342780180,1732140692977,-916.63,0.00055342,120]
[342780181,1732140692986,-1979.2,0.00055342,120]
[342780182,1732140692996,-1449.91,0.00055342,120]
[342780183,1732140693005,-1114.64,0.00055342,120]
[342780184,1732140693014,-500.0,0.00055342,120]
[342780185,1732140693024,-500.0,0.00055342,120]
[342780186,1732140693033,-1049.5,0.00055342,120]
[342780187,1732140693043,-500.0,0.00055342,120]
[342780188,1732140693052,-500.0,0.00055342,120]
[342780189,1732140693289,-500.0,0.00055342,120]
[342780190,1732140693300,-2536.25,0.00055342,120]
[342780191,1732140693310,-3951.61,0.00055342,120]
[342780192,1732140693319,-500.0,0.00055342,120]
[342780193,1732140693329,-2472.73,0.00055342,120]
[342780194,1732140693339,-500.0,0.00055342,120]
[342780195,1732140693348,-500.0,0.00055342,120]
[342780196,1732140693357,-500.0,0.00055342,120]
[342780197,1732140693367,-500.0,0.00055342,120]
[342780198,1732140693376,-786.55,0.00055342,120]
[342780199,1732140693386,-4870.15,0.00055342,120]
[342780200,1732140693396,-883.86,0.00055342,120]
[342780201,1732140693406,-500.0,0.00055342,120]
[342780202,1732140693416,-4533.42,0.00055342,120]
[342780203,1732140693426,-2000.0,0.00055342,30]
[342780204,1732140693435,-500.0,0.00055342,120]
[342780205,1732140693445,-507.68189576,0.00055342,120]
[342780206,1732140693455,-500.0,0.00055342,120]
[342780207,1732140693464,-636.47,0.00055342,120]
[342780208,1732140693473,-851.5,0.00055342,120]
[342780209,1732140693483,-1816.21,0.00055342,120]
[342780210,1732140693492,-500.0,0.00055342,120]
[342780211,1732140693501,-616.92,0.00055342,120]
[342780212,1732140693511,-1014.23,0.00055342,120]
[342780213,1732140693521,-6811.17,0.00055342,120]
[342780214,1732140693530,-500.0,0.00055342,120]
[342780215,1732140693540,-500.0,0.00055342,120]
[342780216,1732140693550,-553.31020557,0.00055342,120]
[342780217,1732140693560,-500.0,0.00055342,120]
[342780218,1732140693569,-500.0,0.00055342,120]
[342780219,1732140693578,-1332.89,0.00055342,120]
[342780220,1732140693588,-753.95,0.00055342,120]
[342780221,1732140693597,-10722.81,0.00055342,120]
[342780222,1732140693606,-500.0,0.00055342,120]
[342780223,1732140693616,-500.0,0.00055342,120]
[342780224,1732140693626,-1359.85,0.00055342,120]
[342780225,1732140693636,-2324.44,0.00055342,120]
[342780226,1732140693645,-500.0,0.00055342,120]
[342780227,1732140693659,-535.04,0.00055342,120]
[342780228,1732140693668,-4406.16,0.00055342,120]
[342780229,1732140693678,-500.0,0.00055342,120]
[342780230,1732140693688,-500.0,0.00055342,120]
[342780231,1732140693698,-1128.91,0.00055342,120]
[342780232,1732140693708,-500.0,0.00055342,120]
[342780233,1732140693717,-665.96,0.00055342,120]
[342780234,1732140693726,-500.0,0.00055342,120]
[342780235,1732140693736,-980.99,0.00055342,120]
[342780236,1732140693746,-580.64,0.00055342,120]
[342780237,1732140693756,-500.0,0.00055342,120]
[342780238,1732140693765,-892.8,0.00055342,120]
[342780239,1732140693775,-514.0405183,0.00055342,120]
[342780240,1732140693784,-1436.75,0.00055342,120]
[342780241,1732140693794,-778.22,0.00055342,120]
[342780242,1732140693804,-558.99,0.00055342,120]
[342780243,1732140693814,-1153.44,0.00055342,7]
[342780244,1732140693825,-622.72869001,0.00055342,120]
[342780245,1732140693835,-500.0,0.00055342,120]
[342780246,1732140693845,-2548.81,0.00055342,120]
[342780247,1732140693855,-3675.23,0.00055342,120]
[342780248,1732140693865,-500.0,0.00055342,120]
[342780249,1732140693875,-500.0,0.00055342,120]
[342780250,1732140693885,-500.0,0.00055342,120]
[342780251,1732140693895,-500.0,0.00055342,120]
[342780252,1732140693907,-500.0,0.00055342,120]
[342780253,1732140693916,-2249.83,0.00055342,120]
[342780254,1732140693926,-3167.44,0.00055342,120]
[342780255,1732140693935,-500.0,0.00055342,120]
[342780256,1732140693945,-500.0,0.00055342,120]
[342780257,1732140693955,-500.0,0.00055342,120]
[342780258,1732140693964,-11179.92,0.00055342,21]
[342780259,1732140693974,-500.0,0.00055342,120]
[342780260,1732140693983,-500.0,0.00055342,120]
[342780261,1732140693992,-500.0,0.00055342,120]
[342780262,1732140694002,-859.5,0.00055342,120]
[342780263,1732140694012,-366.08301554,0.00055342,120]
[342780264,1732140694021,-3662.75,0.00055342,120]
[342780265,1732140694031,-922.45,0.00055342,120]
[342780266,1732140694040,-500.0,0.00055342,120]
[342780267,1732140694050,-500.0,0.00055342,120]
[342780268,1732140694060,-500.0,0.00055342,120]
[342780269,1732140694070,-1994.35,0.00055342,120]
[342780270,1732140694079,-500.0,0.00055342,120]
[342780271,1732140694089,-500.0,0.00055342,120]
[342780272,1732140694101,-66449.02,0.00055342,5]
[342780273,1732140694111,-645.36957263,0.00055342,120]
[342780274,1732140694121,-1363.9,0.00055342,120]
[342780275,1732140694141,-1162.72,0.00055342,120]
[342780276,1732140694161,-1815.23,0.00055342,120]
[342780277,1732140694180,-1114.06,0.00055342,120]
[342780278,1732140694201,-500.0,0.00055342,120]
[342780279,1732140694219,-1159.58,0.00055342,120]
[342780280,1732140694229,-500.0,0.00055342,120]
[342780281,1732140694239,-500.0,0.00055342,120]
[342780282,1732140694249,-500.0,0.00055342,120]
[342780283,1732140694258,-2826.01,0.00055342,120]
[342780284,1732140694268,-500.0,0.00055342,120]
[342780285,1732140694278,-6111.41,0.00055342,120]
[342780286,1732140694287,-514.74554928,0.00055342,120]
[342780287,1732140694297,-500.0,0.00055342,120]
[342780288,1732140694306,-500.0,0.00055342,120]
[342780289,1732140694316,-500.0,0.00055342,120]
[342780290,1732140694326,-1031.65,0.00055342,120]
[342780291,1732140694335,-546.35483875,0.00055342,120]
[342780292,1732140694345,-532.59,0.00055342,120]
[342780293,1732140694355,-754.16,0.00055342,120]
[342780294,1732140694365,-500.0,0.00055342,120]
[342780295,1732140694375,-553.58,0.00055342,120]
[342780296,1732140694385,-500.0,0.00055342,120]
[342780297,1732140694395,-500.0,0.00055342,120]
[342780298,1732140694406,-3918.3,0.00055342,120]
[342780299,1732140694417,-500.0,0.00055342,120]
[342780300,1732140694427,-500.0,0.00055342,120]
[342780301,1732140694437,-687.41,0.00055342,120]
[342780302,1732140694447,-2233.29,0.00055342,120]
[342780303,1732140694457,-2901.67,0.00055342,120]
[342780304,1732140694467,-500.0,0.00055342,120]
[342780305,1732140694477,-1140.89,0.00055342,120]
[342780306,1732140694487,-1693.94,0.00055342,120]
[342780307,1732140694496,-743.27,0.00055342,120]
[342780308,1732140694506,-4798.42,0.00055342,120]
[342780309,1732140694516,-884.65,0.00055342,120]
[342780310,1732140694525,-500.0,0.00055342,120]
[342780311,1732140694535,-589.18,0.00055342,120]
[342780312,1732140694545,-500.0,0.00055342,120]
[342780313,1732140694555,-1609.97,0.00055342,120]
[342780314,1732140694564,-329.53335159,0.00055342,120]
[342780315,1732140694575,-842.19,0.00055342,120]
[342780316,1732140694584,-500.0,0.00055342,120]
[342780317,1732140694594,-500.0,0.00055342,120]
[342780318,1732140694603,-548.16,0.00055342,120]
[342780319,1732140694613,-4873.91,0.00055342,120]
[342780320,1732140694624,-1086.88,0.00055342,120]
[342780321,1732140694634,-500.0,0.00055342,120]
[342780322,1732140694643,-1158.88,0.00055342,120]
[342780323,1732140694654,-509.9158267,0.00055342,120]
[342780324,1732140694664,-7009.95,0.00055342,120]
[342780325,1732140694674,-725.57,0.00055342,120]
[342780326,1732140694684,-500.0,0.00055342,120]
[342780327,1732140694693,-500.0,0.00055342,120]
[342780328,1732140694703,-500.0,0.00055342,120]
[342780329,1732140694712,-500.0,0.00055342,120]
[342780330,1732140694722,-2713.37,0.00055342,120]
[342780331,1732140694732,-2674.97,0.00055342,120]
[342780332,1732140694741,-1095.19,0.00055342,120]
[342780333,1732140694751,-500.0,0.00055342,120]
[342780334,1732140694760,-3162.29,0.00055342,120]
[342780335,1732140694770,-500.0,0.00055342,120]
[342780336,1732140694779,-500.0,0.00055342,120]
[342780337,1732140694789,-500.0,0.00055342,120]
[342780338,1732140694798,-500.0,0.00055342,120]
[342780339,1732140694808,-500.0,0.00055342,120]
[342780340,1732140694817,-500.0,0.00055342,120]
[342780341,1732140694827,-5192.12,0.00055342,120]
[342780342,1732140694837,-6968.45,0.00055342,60]
[342780343,1732140694847,-500.0,0.00055342,120]
[342780344,1732140694857,-500.0,0.00055342,120]
[342780345,1732140694867,-500.0,0.00055342,120]
[342780346,1732140694876,-500.0,0.00055342,120]
[342780347,1732140694885,-500.0,0.00055342,120]
[342780348,1732140694895,-500.0,0.00055342,120]
[342780349,1732140694915,-788.84,0.00055342,120]
[342780350,1732140694935,-801.02,0.00055342,120]
[342780351,1732140694955,-1135.51,0.00055342,120]
[342780352,1732140694974,-500.0,0.00055342,120]
[342780353,1732140694990,-565.84,0.00055342,120]
[342780354,1732140695010,-500.0,0.00055342,120]
[342780355,1732140695029,-736.59,0.00055342,120]
[342780356,1732140695048,-778.41,0.00055342,120]
[342780357,1732140695068,-2123.81,0.00055342,120]
[342780358,1732140695088,-392.21376724,0.00055342,120]
[342780359,1732140695103,-1368.4,0.00055342,120]
[342780360,1732140695122,-1176.11,0.00055342,120]
[342780361,1732140695139,-500.0,0.00055342,120]
[342780362,1732140695158,-500.0,0.00055342,120]
[342780363,1732140695174,-6444.84,0.00055342,120]
[342780364,1732140695189,-151.0,0.00055342,120]
[342780365,1732140695205,-840.5,0.00055342,120]
[342780366,1732140695220,-1149.75,0.00055342,120]
[342780367,1732140695236,-538.19,0.00055342,120]
[342780368,1732140695252,-500.0,0.00055342,120]
[342780369,1732140695268,-1918.75,0.00055342,120]
[342780370,1732140695283,-527.39,0.00055342,120]
[342780371,1732140695298,-503.33936549,0.00055342,120]
[342780372,1732140695313,-846.33,0.00055342,120]
[342780373,1732140695328,-924.66,0.00055342,120]
[342780374,1732140695343,-1437.44,0.00055342,120]
[342780375,1732140695360,-655.97,0.00055342,120]
[342780376,1732140695375,-613.35,0.00055342,120]
[342780377,1732140695389,-1217.61,0.00055342,120]
[342780378,1732140695405,-7358.45,0.00055342,120]
[342780379,1732140695420,-1149.18,0.00055342,120]
[342780380,1732140695436,-500.0,0.00055342,120]
[342780381,1732140695451,-1147.11,0.00055342,120]
[342780382,1732140695467,-500.0,0.00055342,120]
[342780383,1732140695481,-1974.94,0.00055342,120]
[342780384,1732140695497,-17457.35,0.00055342,120]
[342780385,1732140695512,-13034.59,0.00055342,120]
[342780386,1732140695526,-2237.64,0.00055342,120]
[342780387,1732140695540,-500.0,0.00055342,120]
[342780388,1732140695555,-2737.65,0.00055342,120]
[342780389,1732140695570,-500.0,0.00055342,120]
[342780390,1732140695585,-551.05,0.00055342,120]
[342780391,1732140695599,-500.0,0.00055342,120]
[342780392,1732140695615,-2479.1,0.00055342,120]
[342780393,1732140695629,-500.0,0.00055342,120]
[342780394,1732140695643,-500.0,0.00055342,120]
[342780395,1732140695657,-500.0,0.00055342,120]
[342780396,1732140695672,-3077.78,0.00055342,120]
[342780397,1732140695687,-500.0,0.00055342,120]
[342780398,1732140695701,-151.0,0.00055342,120]
[342780399,1732140695724,-4393.1,0.00055342,120]
[342780400,1732140695743,-535.35,0.00055342,120]
[342780401,1732140695762,-656.88,0.00055342,120]
[342780402,1732140695780,-1967.61,0.00055342,120]
[342780403,1732140695800,-1550.26,0.00055342,120]
[342780404,1732140695817,-500.0,0.00055342,120]
[342780405,1732140695837,-500.0,0.00055342,120]
[342780406,1732140695854,-500.0,0.00055342,120]
[342780407,1732140695870,-223.607947,0.00055342,120]
[342780408,1732140695886,-725.78,0.00055342,120]
[342780409,1732140695903,-996.23,0.00055342,120]
[342780410,1732140695921,-5411.3,0.00055342,120]
[342780411,1732140695936,-500.0,0.00055342,120]
[342780412,1732140695952,-500.0,0.00055342,120]
[342780413,1732140695967,-559.06,0.00055342,120]
[342780414,1732140695983,-1127.77,0.00055342,120]
[342780415,1732140695999,-570.31,0.00055342,120]